[Event "Titled Tuesday Blitz February 01 B 2022"]
[White "Salinas Herrera, Pablo"]
[Black "Sviridov, Valery"]
[WhiteFideId "3407128"]
[BlackFideId "4120680"]
[WhiteElo "2541"]
[BlackElo "2454"]
[Result "1/2-1/2"]
[Round "11"]
[TimeControl "180+1"]
[Date "2022.02.01"]
[WhiteClock "0:00:05"]
[BlackClock "0:00:05"]

1. d4 {[%clk 0:03:00]}  g6 {[%clk 0:02:58]} 2. e4 {[%clk 0:03:00]}  Bg7 {[%clk 0:02:59]} 3. Nf3 {[%clk 0:03:01]}  d6 {[%clk 0:02:59]} 4. Be2 {[%clk 0:03:01]}  b6 {[%clk 0:02:57]} 5. O-O {[%clk 0:03:01]}  Bb7 {[%clk 0:02:57]} 6. Nc3 {[%clk 0:02:59]}  e6 {[%clk 0:02:58]} 7. Re1 {[%clk 0:02:59]}  Ne7 {[%clk 0:02:55]} 8. Bf1 {[%clk 0:02:59]}  Nd7 {[%clk 0:02:55]} 9. h3 {[%clk 0:02:57]}  a6 {[%clk 0:02:54]} 10. Be3 {[%clk 0:02:55]}  h6 {[%clk 0:02:52]} 11. Qd2 {[%clk 0:02:55]}  g5 {[%clk 0:02:53]} 12. Rad1 {[%clk 0:02:56]}  Ng6 {[%clk 0:02:53]} 13. Nh2 {[%clk 0:02:52]}  O-O {[%clk 0:02:52]} 14. a4 {[%clk 0:02:44]}  f5 {[%clk 0:02:51]} 15. f3 {[%clk 0:02:44]}  fxe4 {[%clk 0:02:34]} 16. Nxe4 {[%clk 0:02:36]}  Qe7 {[%clk 0:02:29]} 17. Ng4 {[%clk 0:02:34]}  Rae8 {[%clk 0:02:27]} 18. c3 {[%clk 0:02:24]}  Nh4 {[%clk 0:02:23]} 19. Nxg5 {[%clk 0:02:00]}  Nf5 {[%clk 0:01:54]} 20. Ne4 {[%clk 0:01:51]}  Nxe3 {[%clk 0:01:54]} 21. Qxe3 {[%clk 0:01:51]}  h5 {[%clk 0:01:48]} 22. Ngf2 {[%clk 0:01:47]}  d5 {[%clk 0:01:48]} 23. Ng3 {[%clk 0:01:44]}  Qh4 {[%clk 0:01:43]} 24. Ngh1 {[%clk 0:01:32]}  e5 {[%clk 0:01:42]} 25. Qd2 {[%clk 0:01:20]}  exd4 {[%clk 0:01:34]} 26. Rxe8 {[%clk 0:01:21]}  Rxe8 {[%clk 0:01:32]} 27. cxd4 {[%clk 0:01:21]}  c5 {[%clk 0:01:20]} 28. dxc5 {[%clk 0:01:18]}  Nxc5 {[%clk 0:01:21]} 29. Re1 {[%clk 0:01:05]}  Rf8 {[%clk 0:00:58]} 30. a5 {[%clk 0:01:05]}  Qf6 {[%clk 0:00:55]} 31. b4 {[%clk 0:00:55]}  Ne6 {[%clk 0:00:48]} 32. axb6 {[%clk 0:00:45]}  Nf4 {[%clk 0:00:49]} 33. g3 {[%clk 0:00:40]}  Ng6 {[%clk 0:00:46]} 34. Bg2 {[%clk 0:00:29]}  h4 {[%clk 0:00:46]} 35. Nd3 {[%clk 0:00:07]}  Qxb6+ {[%clk 0:00:46]} 36. Nc5 {[%clk 0:00:07]}  Bc8 {[%clk 0:00:31]} 37. Nf2 {[%clk 0:00:06]}  Qd6 {[%clk 0:00:23]} 38. g4 {[%clk 0:00:05]}  Nf4 {[%clk 0:00:23]} 39. Nfd3 {[%clk 0:00:04]}  Nxg2 {[%clk 0:00:21]} 40. Qxg2 {[%clk 0:00:04]}  a5 {[%clk 0:00:20]} 41. f4 {[%clk 0:00:03]}  axb4 {[%clk 0:00:17]} 42. Kh1 {[%clk 0:00:04]}  Bc3 {[%clk 0:00:13]} 43. Re2 {[%clk 0:00:03]}  Bd4 {[%clk 0:00:08]} 44. Nb3 {[%clk 0:00:02]}  Ba6 {[%clk 0:00:06]} 45. Nxd4 {[%clk 0:00:02]}  Bxd3 {[%clk 0:00:07]} 46. Re5 {[%clk 0:00:02]}  Be4 {[%clk 0:00:07]} 47. Rxe4 {[%clk 0:00:02]}  dxe4 {[%clk 0:00:08]} 48. Qxe4 {[%clk 0:00:03]}  Rd8 {[%clk 0:00:08]} 49. Nf3 {[%clk 0:00:02]}  Qd1+ {[%clk 0:00:08]} 50. Kg2 {[%clk 0:00:02]}  Qd6 {[%clk 0:00:05]} 51. Qf5 {[%clk 0:00:03]}  Qd5 {[%clk 0:00:03]} 52. Qg6+ {[%clk 0:00:03]}  Kf8 {[%clk 0:00:03]} 53. Qf6+ {[%clk 0:00:03]}  Ke8 {[%clk 0:00:04]} 54. Qxh4 {[%clk 0:00:04]}  b3 {[%clk 0:00:04]} 55. Kg3 {[%clk 0:00:04]}  Qd3 {[%clk 0:00:04]} 56. Qh8+ {[%clk 0:00:04]}  Kd7 {[%clk 0:00:04]} 57. Qg7+ {[%clk 0:00:04]}  Kc8 {[%clk 0:00:04]} 58. Qa7 {[%clk 0:00:04]}  Qc2 {[%clk 0:00:04]} 59. Qa8+ {[%clk 0:00:04]}  Kc7 {[%clk 0:00:05]} 60. Qa7+ {[%clk 0:00:05]}  Kc8 {[%clk 0:00:05]} 61. Qa8+ {[%clk 0:00:05]}  Kd7 {[%clk 0:00:05]} 62. Qd5+ {[%clk 0:00:05]}  Kc7 {[%clk 0:00:05]} 63. Qa5+ {[%clk 0:00:05]}  Kc8 {[%clk 0:00:05]} 64. Qa8+ {[%clk 0:00:05]} 1/2-1/2


[Site "https://www.chess.com"]

[Event "Titled Tuesday Blitz February 01 B 2022"]
[White "Timofeev, Artyom"]
[Black "Mirzoev, Azer"]
[WhiteFideId "4140419"]
[BlackFideId "13400304"]
[WhiteElo "2583"]
[BlackElo "2525"]
[Result "1-0"]
[Round "11"]
[TimeControl "180+1"]
[Date "2022.02.01"]
[WhiteClock "0:00:36"]
[BlackClock "0:00:13"]

1. d4 {[%clk 0:03:00]}  d5 {[%clk 0:02:59]} 2. c4 {[%clk 0:03:00]}  c6 {[%clk 0:02:59]} 3. Nf3 {[%clk 0:03:00]}  Nf6 {[%clk 0:03:00]} 4. Nc3 {[%clk 0:02:59]}  a6 {[%clk 0:03:00]} 5. Ne5 {[%clk 0:02:59]}  Nbd7 {[%clk 0:02:54]} 6. Bf4 {[%clk 0:02:58]}  e6 {[%clk 0:02:51]} 7. e3 {[%clk 0:02:58]}  Be7 {[%clk 0:02:44]} 8. Be2 {[%clk 0:02:54]}  O-O {[%clk 0:02:37]} 9. O-O {[%clk 0:02:53]}  Nxe5 {[%clk 0:02:38]} 10. dxe5 {[%clk 0:02:53]}  Nd7 {[%clk 0:02:37]} 11. cxd5 {[%clk 0:02:52]}  exd5 {[%clk 0:02:36]} 12. e4 {[%clk 0:02:52]}  Nb6 {[%clk 0:02:31]} 13. exd5 {[%clk 0:02:37]}  Nxd5 {[%clk 0:02:30]} 14. Nxd5 {[%clk 0:02:37]}  Qxd5 {[%clk 0:02:29]} 15. Qxd5 {[%clk 0:02:34]}  cxd5 {[%clk 0:02:30]} 16. Rac1 {[%clk 0:02:30]}  Rd8 {[%clk 0:02:16]} 17. Rc7 {[%clk 0:02:27]}  Bb4 {[%clk 0:02:13]} 18. Rfc1 {[%clk 0:02:22]}  Ba5 {[%clk 0:02:12]} 19. R7c5 {[%clk 0:02:18]}  Bb6 {[%clk 0:02:11]} 20. R5c3 {[%clk 0:02:12]}  Bd4 {[%clk 0:02:03]} 21. Rd3 {[%clk 0:02:04]}  Ba7 {[%clk 0:01:38]} 22. Rb3 {[%clk 0:01:52]}  b5 {[%clk 0:01:28]} 23. Rg3 {[%clk 0:01:12]}  Be6 {[%clk 0:01:21]} 24. Bd3 {[%clk 0:01:07]}  Rdc8 {[%clk 0:01:16]} 25. Rd1 {[%clk 0:01:06]}  Bc5 {[%clk 0:01:10]} 26. Kf1 {[%clk 0:01:05]}  Bf8 {[%clk 0:01:07]} 27. Ke2 {[%clk 0:01:05]}  Ra7 {[%clk 0:01:06]} 28. Be3 {[%clk 0:01:02]}  Rac7 {[%clk 0:00:51]} 29. Bd4 {[%clk 0:01:02]}  h5 {[%clk 0:00:34]} 30. h3 {[%clk 0:00:59]}  h4 {[%clk 0:00:30]} 31. Re3 {[%clk 0:00:58]}  g6 {[%clk 0:00:28]} 32. f4 {[%clk 0:00:58]}  Rc1 {[%clk 0:00:22]} 33. Rf3 {[%clk 0:00:56]}  Rxd1 {[%clk 0:00:19]} 34. Kxd1 {[%clk 0:00:56]}  Bc5 {[%clk 0:00:18]} 35. Bxc5 {[%clk 0:00:54]}  Rxc5 {[%clk 0:00:18]} 36. Kd2 {[%clk 0:00:48]}  d4 {[%clk 0:00:18]} 37. a3 {[%clk 0:00:47]}  Bd5 {[%clk 0:00:17]} 38. Rf2 {[%clk 0:00:46]}  Bc4 {[%clk 0:00:15]} 39. Be4 {[%clk 0:00:44]}  Bb3 {[%clk 0:00:15]} 40. Kd3 {[%clk 0:00:40]}  Rc4 {[%clk 0:00:13]} 41. Bd5 {[%clk 0:00:36]} 1-0


[Site "https://www.chess.com"]

[Event "Titled Tuesday Blitz February 01 B 2022"]
[White "Van Foreest, Jorden"]
[Black "Andreikin, Dmitry"]
[WhiteFideId "1039784"]
[BlackFideId "4158814"]
[WhiteElo "2609"]
[BlackElo "2736"]
[Result "0-1"]
[Round "11"]
[TimeControl "180+1"]
[Date "2022.02.01"]
[WhiteClock "0:00:02"]
[BlackClock "0:00:19"]

1. e4 {[%clk 0:03:00]}  e5 {[%clk 0:02:58]} 2. Nf3 {[%clk 0:03:00]}  Nc6 {[%clk 0:02:58]} 3. Bc4 {[%clk 0:03:00]}  Bc5 {[%clk 0:02:58]} 4. c3 {[%clk 0:02:59]}  Nf6 {[%clk 0:02:57]} 5. d3 {[%clk 0:02:59]}  d6 {[%clk 0:02:55]} 6. O-O {[%clk 0:03:00]}  h6 {[%clk 0:02:55]} 7. Re1 {[%clk 0:03:00]}  Bb6 {[%clk 0:02:55]} 8. Nbd2 {[%clk 0:02:59]}  g5 {[%clk 0:02:55]} 9. Rf1 {[%clk 0:02:46]}  g4 {[%clk 0:02:49]} 10. Ne1 {[%clk 0:02:46]}  h5 {[%clk 0:02:48]} 11. Bb3 {[%clk 0:02:44]}  Na5 {[%clk 0:02:14]} 12. Bc2 {[%clk 0:02:38]}  g3 {[%clk 0:02:04]} 13. hxg3 {[%clk 0:02:34]}  h4 {[%clk 0:02:04]} 14. d4 {[%clk 0:01:54]}  exd4 {[%clk 0:01:45]} 15. cxd4 {[%clk 0:01:49]}  hxg3 {[%clk 0:01:43]} 16. Ndf3 {[%clk 0:01:48]}  Ng4 {[%clk 0:01:28]} 17. fxg3 {[%clk 0:01:36]}  Nc6 {[%clk 0:01:28]} 18. Ba4 {[%clk 0:01:09]}  Bd7 {[%clk 0:01:28]} 19. Bxc6 {[%clk 0:01:08]}  bxc6 {[%clk 0:01:19]} 20. Bg5 {[%clk 0:00:59]}  f6 {[%clk 0:01:19]} 21. Bh4 {[%clk 0:00:57]}  Ne3 {[%clk 0:01:15]} 22. Qe2 {[%clk 0:00:55]}  Nxf1 {[%clk 0:01:15]} 23. Qxf1 {[%clk 0:00:55]}  Qe7 {[%clk 0:01:11]} 24. Nc2 {[%clk 0:00:51]}  c5 {[%clk 0:00:56]} 25. d5 {[%clk 0:00:33]}  c4+ {[%clk 0:00:45]} 26. Kh2 {[%clk 0:00:33]}  O-O-O {[%clk 0:00:43]} 27. Qxc4 {[%clk 0:00:26]}  Rde8 {[%clk 0:00:43]} 28. Re1 {[%clk 0:00:20]}  Qg7 {[%clk 0:00:44]} 29. Ncd4 {[%clk 0:00:19]}  Qg4 {[%clk 0:00:38]} 30. Nc6 {[%clk 0:00:15]}  Kb7 {[%clk 0:00:28]} 31. Qb5 {[%clk 0:00:04]}  Ka8 {[%clk 0:00:25]} 32. a4 {[%clk 0:00:02]}  Bf2 {[%clk 0:00:22]} 33. Kh1 {[%clk 0:00:01]}  Qxg3 {[%clk 0:00:19]} 34. Re2 {[%clk 0:00:02]}  Rxh4+ {[%clk 0:00:19]} 0-1


[Site "https://www.chess.com"]

[Event "Titled Tuesday Blitz February 01 B 2022"]
[White "Weetik, Vjacheslav"]
[Black "Carlsson, Ludvig"]
[WhiteFideId "4153472"]
[BlackFideId "1727010"]
[WhiteElo "2469"]
[BlackElo "2178"]
[Result "1-0"]
[Round "11"]
[TimeControl "180+1"]
[Date "2022.02.01"]
[WhiteClock "0:00:11"]
[BlackClock "0:00:01"]

1. e4 {[%clk 0:02:55]}  e5 {[%clk 0:02:58]} 2. f4 {[%clk 0:02:54]}  exf4 {[%clk 0:02:57]} 3. Bc4 {[%clk 0:02:54]}  Nc6 {[%clk 0:02:50]} 4. d4 {[%clk 0:02:52]}  g5 {[%clk 0:02:46]} 5. h4 {[%clk 0:02:47]}  Bg7 {[%clk 0:02:43]} 6. c3 {[%clk 0:02:46]}  d6 {[%clk 0:02:29]} 7. Nf3 {[%clk 0:02:20]}  h6 {[%clk 0:02:28]} 8. Na3 {[%clk 0:01:28]}  Qe7 {[%clk 0:02:18]} 9. Qe2 {[%clk 0:01:20]}  Bg4 {[%clk 0:02:12]} 10. Bd2 {[%clk 0:01:16]}  Nf6 {[%clk 0:02:11]} 11. Bd3 {[%clk 0:01:09]}  O-O-O {[%clk 0:02:09]} 12. O-O-O {[%clk 0:01:08]}  Rhe8 {[%clk 0:02:08]} 13. Rde1 {[%clk 0:01:02]}  Nh5 {[%clk 0:01:56]} 14. Qd1 {[%clk 0:00:55]}  Ng3 {[%clk 0:01:54]} 15. Rhg1 {[%clk 0:00:53]}  Kb8 {[%clk 0:01:45]} 16. hxg5 {[%clk 0:00:48]}  hxg5 {[%clk 0:01:46]} 17. Qa4 {[%clk 0:00:48]}  Bd7 {[%clk 0:01:42]} 18. Qc2 {[%clk 0:00:39]}  Qf6 {[%clk 0:01:26]} 19. Nc4 {[%clk 0:00:37]}  Ka8 {[%clk 0:01:14]} 20. b4 {[%clk 0:00:33]}  g4 {[%clk 0:01:00]} 21. e5 {[%clk 0:00:33]}  Qh6 {[%clk 0:00:48]} 22. b5 {[%clk 0:00:23]}  gxf3 {[%clk 0:00:41]} 23. bxc6 {[%clk 0:00:20]}  Bxc6 {[%clk 0:00:41]} 24. gxf3 {[%clk 0:00:20]}  Bxf3 {[%clk 0:00:36]} 25. Rxg3 {[%clk 0:00:20]}  fxg3 {[%clk 0:00:31]} 26. Bxh6 {[%clk 0:00:19]}  Bxh6+ {[%clk 0:00:31]} 27. Kb2 {[%clk 0:00:19]}  f6 {[%clk 0:00:22]} 28. e6 {[%clk 0:00:14]}  Re7 {[%clk 0:00:21]} 29. Bf5 {[%clk 0:00:14]}  Bd5 {[%clk 0:00:18]} 30. Ne3 {[%clk 0:00:14]}  Bxe6 {[%clk 0:00:17]} 31. Nd5 {[%clk 0:00:13]}  Bxf5 {[%clk 0:00:18]} 32. Qxf5 {[%clk 0:00:10]}  Rxe1 {[%clk 0:00:18]} 33. Qxf6 {[%clk 0:00:10]}  Rg8 {[%clk 0:00:15]} 34. Nxc7+ {[%clk 0:00:10]}  Kb8 {[%clk 0:00:15]} 35. Qxd6 {[%clk 0:00:11]}  Re2+ {[%clk 0:00:12]} 36. Kb3 {[%clk 0:00:11]}  Rg6 {[%clk 0:00:01]} 37. Ne6+ {[%clk 0:00:11]} 1-0


[Site "https://www.chess.com"]